bitfinex/quotes_BTCUSD_20250803
["timestamp","ask_amount","ask_price","bid_price","bid_amount"]
[1754246794693,0.05017113,114660.0,114650.0,0.24616574]
[1754246795117,0.72255793,114660.0,114650.0,0.24616574]
[1754246796824,0.72255793,114660.0,114650.0,0.21261]
[1754246799147,0.72255793,114660.0,114650.0,0.07985]
[1754246799377,0.747143,114650.0,114640.0,4e-05]
[1754246799603,2.10625346,114650.0,114640.0,0.1328]
[1754246799831,1.4839359,114650.0,114640.0,0.1328]
[1754246800051,1.4576788,114650.0,114640.0,0.1328]
[1754246800531,1.45153405,114650.0,114640.0,4e-05]
[1754246800752,1.42772191,114650.0,114640.0,4e-05]
[1754246800977,1.43386092,114650.0,114640.0,4e-05]
[1754246801409,1.42872191,114650.0,114640.0,4e-05]
[1754246801852,1.16985191,114650.0,114640.0,4e-05]
[1754246802544,1.17085191,114650.0,114640.0,4e-05]
[1754246802762,1.09646325,114650.0,114640.0,4e-05]
[1754246804089,1.08827114,114650.0,114640.0,4e-05]
[1754246804309,1.22103114,114650.0,114640.0,4e-05]
[1754246805260,1.96610987,114650.0,114640.0,4e-05]
[1754246805716,1.99234887,114650.0,114640.0,4e-05]
[1754246805958,1.90964039,114650.0,114640.0,4e-05]
[1754246806618,1.31164225,114650.0,114640.0,4e-05]
[1754246810703,1.90964039,114650.0,114640.0,4e-05]
[1754246811767,1.90962722,114650.0,114640.0,4e-05]
[1754246813043,1.94339641,114650.0,114620.0,0.05713198]
[1754246813461,1.08627114,114630.0,114620.0,0.05713198]
[1754246813676,1.21907114,114630.0,114620.0,0.05713198]
[1754246814576,1.23273319,114630.0,114620.0,0.05713198]
[1754246814774,0.63473505,114630.0,114620.0,0.05713198]
[1754246815012,1.23273319,114630.0,114620.0,0.05713198]
[1754246815705,1.23473319,114630.0,114620.0,0.05713198]
[1754246815934,1.26097919,114630.0,114620.0,0.05713198]
[1754246816380,1.26097919,114630.0,114620.0,0.13048198]
[1754246817491,1.26297919,114630.0,114620.0,0.13048198]
[1754246818163,1.26297919,114630.0,114620.0,0.13581198]
[1754246818349,1.13017919,114630.0,114620.0,0.13581198]
[1754246819289,0.53218105,114630.0,114620.0,0.13581198]
[1754246819509,1.13017919,114630.0,114620.0,0.13581198]
[1754246819745,0.19218105,114630.0,114620.0,0.13581198]
[1754246819991,0.50593505,114630.0,114620.0,0.14939318]
[1754246820209,0.50593505,114630.0,114620.0,0.13581198]
[1754246820433,1.10393319,114630.0,114620.0,0.13581198]
[1754246822273,1.10393319,114630.0,114620.0,0.13406598]
[1754246824114,1.10393319,114630.0,114620.0,0.07868]
[1754246829275,1.11210755,114630.0,114620.0,0.07868]
[1754246830799,1.11210898,114630.0,114620.0,0.07868]
[1754246832419,1.11824156,114630.0,114610.0,0.00296]
[1754246832720,0.60072454,114620.0,114610.0,0.07933]
[1754246832954,0.59799814,114620.0,114610.0,0.08141]
[1754246835299,0.59899814,114620.0,114610.0,0.08141]
[1754246836028,0.59999814,114620.0,114610.0,0.08141]
[1754246840925,0.002,114620.0,114610.0,0.08141]
[1754246841134,0.0047264,114620.0,114610.0,0.10992043]
[1754246841827,0.0047264,114620.0,114610.0,0.08141]
[1754246842025,0.148273,114620.0,114610.0,0.08141]
[1754246844573,0.16193404,114620.0,114610.0,0.08141]
[1754246844783,0.01366104,114620.0,114610.0,0.08141]
[1754246847754,0.148273,114620.0,114610.0,0.08141]
[1754246848004,0.01366102,114620.0,114610.0,0.08141]
[1754246848455,0.01366102,114620.0,114610.0,0.10992043]
[1754246848642,0.01366102,114620.0,114610.0,0.08141]
[1754246853867,0.148273,114620.0,114610.0,0.08141]
[1754246854752,0.82108848,114620.0,114610.0,0.08141]
[1754246854919,0.67281548,114620.0,114610.0,0.08141]
[1754246857242,0.68647656,114620.0,114610.0,0.08141]
[1754246857465,0.68391656,114620.0,114610.0,0.08141]
[1754246860152,0.67025548,114620.0,114610.0,0.08141]
[1754246860386,0.67025548,114620.0,114610.0,0.21465]
[1754246862640,0.67281548,114620.0,114610.0,0.21465]
[1754246863535,0.68647659,114620.0,114610.0,0.21465]
[1754246864952,0.68647659,114620.0,114610.0,0.23613323]
[1754246865155,0.68647659,114620.0,114610.0,0.21465]
[1754246866478,0.67281548,114620.0,114610.0,0.21465]
[1754246867165,0.17294306,114640.0,114610.0,0.21465]
[1754246867383,0.67281548,114620.0,114610.0,0.13828]
[1754246867797,0.17294306,114640.0,114610.0,0.13828]
[1754246868014,0.67281548,114620.0,114610.0,0.15212623]
[1754246868882,0.67281548,114620.0,114610.0,0.22438623]
[1754246869249,0.67481548,114620.0,114610.0,0.22438623]
[1754246870169,0.67481548,114620.0,114610.0,0.21054]
[1754246873219,0.68847657,114620.0,114610.0,0.21054]
[1754246874568,0.01566109,114620.0,114610.0,0.21054]
[1754246874797,0.68847657,114620.0,114610.0,0.21054]
[1754246876238,0.67481548,114620.0,114610.0,0.21054]
[1754246877355,0.67481548,114620.0,114610.0,0.23868343]
[1754246878747,0.67481548,114620.0,114610.0,0.21054]
[1754246882070,0.002,114620.0,114610.0,0.21054]
[1754246882292,0.67481548,114620.0,114610.0,0.21054]
[1754246882534,0.67481548,114620.0,114610.0,0.0773]
[1754246882794,0.82308848,114620.0,114610.0,0.13304]
[1754246883006,0.84767661,114620.0,114610.0,0.13304]
[1754246883205,0.84766626,114620.0,114610.0,0.13304]
[1754246884314,0.83128107,114620.0,114610.0,0.13304]
[1754246884500,1.17128107,114620.0,114610.0,0.13304]
[1754246884774,1.19380575,114620.0,114610.0,0.13304]
[1754246885198,0.52098859,114620.0,114610.0,0.13304]
[1754246885416,1.22005007,114620.0,114610.0,0.13304]
[1754246886196,1.21390698,114620.0,114610.0,0.13304]
[1754246887307,1.19752539,114620.0,114610.0,0.13304]
[1754246889234,1.19752539,114620.0,114610.0,0.2053]
[1754246890380,1.21118754,114620.0,114610.0,0.2053]
[1754246890805,1.21118073,114620.0,114610.0,0.2053]
[1754246896639,1.19751858,114620.0,114610.0,0.2053]
[1754246898982,1.19751858,114620.0,114610.0,0.22615223]
[1754246899691,0.5247031,114620.0,114610.0,0.2105]
[1754246899902,0.150273,114620.0,114610.0,0.2105]
[1754246900113,0.002,114620.0,114610.0,0.2105]
[1754246900957,0.67481548,114620.0,114610.0,0.2105]
[1754246901390,1.01481548,114620.0,114610.0,0.2105]
[1754246902821,0.94011376,114620.0,114610.0,0.2105]
[1754246904442,0.95377493,114620.0,114610.0,0.2105]
[1754246905712,0.35566117,114620.0,114610.0,0.2105]
[1754246905910,0.95377493,114620.0,114610.0,0.2105]
[1754246906232,0.95377493,114620.0,114610.0,0.2275]
[1754246907897,0.94011376,114620.0,114610.0,0.2275]
[1754246908455,0.94011376,114620.0,114610.0,0.25733943]
[1754246909910,0.342,114620.0,114610.0,0.25733943]
[1754246910304,0.002,114620.0,114610.0,0.25733943]
[1754246911152,0.01466044,114620.0,114610.0,0.25733943]
[1754246911459,0.01366044,114620.0,114610.0,0.25733943]
[1754246911677,0.01366044,114620.0,114610.0,0.25833943]
[1754246911873,0.01366044,114620.0,114610.0,0.25733943]
[1754246912330,0.01366044,114620.0,114610.0,0.36542129]
[1754246912561,0.01366044,114620.0,114610.0,0.96353505]
[1754246912789,0.01366044,114620.0,114610.0,0.96453505]
[1754246913033,0.73119376,114650.0,114610.0,0.96453505]
[1754246913261,0.148273,114640.0,114620.0,0.00218112]
[1754246913482,0.148273,114640.0,114630.0,0.13518]
[1754246913710,0.148273,114640.0,114630.0,0.21321]
[1754246915090,0.148273,114640.0,114630.0,0.234531]
[1754246915309,0.149273,114640.0,114630.0,0.234531]
[1754246915544,0.001,114640.0,114630.0,0.234531]
[1754246915767,0.002,114640.0,114630.0,0.234531]
[1754246916446,0.001,114640.0,114630.0,0.234531]
[1754246918513,0.148273,114640.0,114630.0,0.234531]
[1754246918725,0.148273,114640.0,114630.0,0.235531]
[1754246919511,0.01365855,114640.0,114630.0,0.235531]
[1754246920828,0.61177231,114640.0,114630.0,0.235531]
[1754246921921,0.01365855,114640.0,114630.0,0.235531]
[1754246924701,0.01365855,114640.0,114630.0,0.21421]
[1754246929810,0.63362852,114660.0,114630.0,0.21421]
[1754246930042,0.63362852,114660.0,114630.0,0.13618]
[1754246930264,0.60627792,114660.0,114640.0,0.07365]
[1754246930478,0.60627792,114660.0,114650.0,0.1334]
[1754246930905,0.60627792,114660.0,114650.0,0.20383]
[1754246931121,0.60827792,114660.0,114650.0,0.20383]
[1754246931348,0.6092786,114660.0,114650.0,0.20383]
[1754246931556,0.6062786,114660.0,114650.0,0.20383]
[1754246931854,0.6072786,114660.0,114650.0,0.20383]
[1754246932089,0.6092786,114660.0,114650.0,0.20383]
[1754246932356,0.63937003,114660.0,114650.0,0.20383]
[1754246934176,0.65302741,114660.0,114650.0,0.20383]
[1754246935274,0.65302741,114660.0,114650.0,0.1334]
[1754246935690,0.65302741,114660.0,114650.0,0.20383]
[1754246936767,0.65302741,114660.0,114650.0,0.20705]
[1754246937183,0.63937003,114660.0,114650.0,0.20705]
[1754246938119,0.63937003,114660.0,114650.0,0.20383]
[1754246938597,0.63937003,114660.0,114650.0,0.20705]
[1754246938838,0.63937003,114660.0,114650.0,0.227755]
[1754246939800,0.63737003,114660.0,114650.0,0.227755]
[1754246940503,0.65202742,114660.0,114650.0,0.20705]
[1754246940729,0.65202742,114660.0,114650.0,0.20383]
[1754246941209,0.65202742,114660.0,114650.0,0.1334]
[1754246941884,0.43189555,114660.0,114650.0,0.1334]
[1754246942301,0.43189555,114660.0,114650.0,0.20383]
[1754246943152,0.58016855,114660.0,114650.0,0.1334]
[1754246943359,0.80030042,114660.0,114650.0,0.1334]
[1754246943591,0.80030042,114660.0,114650.0,0.224535]
[1754246944231,0.80644033,114660.0,114650.0,0.224535]
[1754246944442,0.80652305,114660.0,114650.0,0.224535]
[1754246944881,0.79286566,114660.0,114650.0,0.20383]
[1754246945761,0.64459266,114660.0,114650.0,0.20705]
[1754246947320,0.64459266,114660.0,114650.0,0.20737]
[1754246947815,0.65825005,114660.0,114650.0,0.20737]
[1754246948038,0.42101347,114660.0,114650.0,0.20737]
[1754246948267,0.61799378,114660.0,114650.0,0.230257]
[1754246950356,0.64239456,114660.0,114650.0,0.230257]
[1754246952397,0.64239456,114660.0,114650.0,0.20737]
[1754246952796,0.71672689,114660.0,114650.0,0.20737]
[1754246955650,0.71672689,114660.0,114650.0,0.20415]
[1754246955866,0.7030695,114660.0,114650.0,0.20415]
[1754246956306,0.7030695,114660.0,114650.0,0.2072]
[1754246961192,0.67244609,114660.0,114650.0,0.2072]
[1754246961810,0.366235,114670.0,114650.0,0.22792]
[1754246962025,0.67244609,114660.0,114650.0,0.22792]
[1754246962233,0.68063951,114660.0,114650.0,0.22988]
[1754246963264,0.6942969,114660.0,114650.0,0.22988]
[1754246964513,0.6942969,114660.0,114650.0,0.20916]
[1754246965873,0.68063951,114660.0,114650.0,0.20916]
[1754246971080,0.68063948,114660.0,114650.0,0.20916]
[1754246971919,0.68063948,114660.0,114650.0,0.2072]
[1754246972167,0.69429694,114660.0,114650.0,0.2072]
[1754246972380,1.53882817,114660.0,114650.0,0.13336]
[1754246972602,1.51501603,114660.0,114650.0,0.13336]
[1754246972816,1.54125203,114660.0,114650.0,0.13336]
[1754246973467,0.148273,114640.0,114610.0,0.14691443]
[1754246973678,0.82071909,114620.0,114610.0,0.22440272]
[1754246973887,0.82071909,114620.0,114610.0,0.22745272]
[1754246974092,0.83438081,114620.0,114610.0,0.22745272]
[1754246974519,0.83438081,114620.0,114610.0,0.09397272]
[1754246974932,0.83438081,114620.0,114610.0,0.22749272]
[1754246975974,0.83438081,114620.0,114610.0,0.22849272]
[1754246976178,0.83438081,114620.0,114610.0,0.09497272]
[1754246976406,0.83438081,114620.0,114610.0,0.22849272]
[1754246976606,0.83438081,114620.0,114610.0,0.22949272]
[1754246976807,0.74647288,114620.0,114610.0,0.22949272]
[1754246980162,0.76013452,114620.0,114610.0,0.22949272]
[1754246981455,0.76013452,114620.0,114610.0,0.23150272]
[1754246981948,0.01366164,114620.0,114610.0,0.25465699]
[1754246982224,0.148273,114630.0,114610.0,0.25465699]
[1754246982428,0.148273,114630.0,114610.0,0.17776699]
[1754246982681,0.148273,114630.0,114620.0,0.07389]
[1754246982924,0.0136606,114630.0,114620.0,0.0759]
[1754246983980,0.61186048,114630.0,114620.0,0.0759]
[1754246985001,0.0136606,114630.0,114620.0,0.0759]
[1754246985214,0.61186048,114630.0,114620.0,0.0759]
[1754246985845,0.148273,114630.0,114620.0,0.0759]
[1754246986036,0.59819988,114630.0,114620.0,0.0759]
[1754246990025,0.01366034,114640.0,114620.0,0.0759]
[1754246990245,0.59819988,114630.0,114620.0,0.07284]
[1754246990875,0.59819988,114630.0,114620.0,0.0759]
[1754246991323,0.13444,114640.0,114620.0,0.0759]
[1754246991543,0.59819988,114630.0,114620.0,0.07284]
[1754246991776,0.13344,114640.0,114620.0,0.07284]
[1754246991985,0.74647288,114630.0,114620.0,0.07284]
[1754246992194,0.59819988,114630.0,114620.0,0.07284]
[1754246992606,0.59819988,114630.0,114620.0,0.0759]
[1754246992942,0.6118602,114630.0,114620.0,0.1005597]
[1754246993851,0.6118602,114630.0,114620.0,0.0759]
[1754246996287,0.01366032,114630.0,114620.0,0.0759]
[1754246996723,0.6118602,114630.0,114620.0,0.0759]
[1754246998304,0.01366032,114630.0,114620.0,0.0759]
[1754246998537,0.6118602,114630.0,114620.0,0.0759]
[1754246999014,0.6118602,114630.0,114620.0,0.1008657]
[1754246999444,0.59819988,114630.0,114620.0,0.0759]
[1754247003763,0.61186,114630.0,114620.0,0.0759]
[1754247004135,0.01366012,114630.0,114620.0,0.0759]
[1754247004362,0.61186,114630.0,114620.0,0.0759]
[1754247004818,0.01366012,114630.0,114620.0,0.0759]
[1754247005053,0.01366012,114630.0,114620.0,0.1008657]
[1754247005277,0.68639306,114630.0,114620.0,0.1008657]
[1754247006762,0.67273294,114630.0,114620.0,0.1008657]
[1754247007426,0.67273294,114630.0,114620.0,0.0759]
[1754247007882,0.148273,114640.0,114620.0,0.74863294]
[1754247008068,0.82100594,114640.0,114630.0,0.13344]
[1754247008299,0.82100594,114640.0,114630.0,0.20934]
[1754247009114,0.67273294,114640.0,114630.0,0.20934]
[1754247009337,0.82100594,114640.0,114630.0,0.20934]
[1754247009982,0.82100594,114640.0,114630.0,0.29754729]
[1754247011324,0.83466489,114640.0,114630.0,0.20934]
[1754247011771,0.83566489,114640.0,114630.0,0.20934]
[1754247012216,0.61073195,114640.0,114630.0,0.20934]
[1754247013875,0.01365895,114640.0,114630.0,0.88207294]
[1754247014305,0.01365895,114640.0,114630.0,0.20934]
[1754247014634,0.01365895,114640.0,114630.0,0.90300694]
[1754247015061,0.01365895,114640.0,114630.0,0.90400694]
[1754247015496,0.01365895,114640.0,114630.0,0.90500694]
[1754247019823,0.148273,114650.0,114630.0,0.90500694]
[1754247020056,0.148273,114650.0,114640.0,0.07484]
[1754247020209,0.148273,114650.0,114640.0,0.16578756]
[1754247021030,0.67273294,114650.0,114640.0,0.07695]
[1754247021228,0.67273294,114650.0,114640.0,0.07484]
[1754247021462,0.148273,114640.0,114630.0,0.230214]
[1754247021751,0.148273,114640.0,114630.0,0.229214]
[1754247021910,0.67273294,114640.0,114630.0,0.20534]
[1754247022543,0.67273294,114640.0,114630.0,0.20634]
[1754247022748,0.67273294,114640.0,114630.0,0.20928]
[1754247022969,0.82100594,114640.0,114630.0,0.1342]
[1754247023189,0.82100594,114640.0,114630.0,0.13424]
[1754247023418,0.82100594,114640.0,114630.0,0.13524]
[1754247024110,0.83466497,114640.0,114630.0,0.13524]
[1754247024777,0.75992885,114640.0,114630.0,0.13524]
[1754247025411,0.75992885,114640.0,114630.0,0.20714]
[1754247025745,0.16193203,114640.0,114630.0,0.231088]
[1754247026986,0.16193203,114640.0,114630.0,0.21008]
[1754247027195,0.74626982,114640.0,114630.0,0.20714]
[1754247028031,0.74626982,114640.0,114630.0,0.13524]
[1754247028909,0.76262665,114640.0,114630.0,0.13524]
[1754247029640,1.36062347,114640.0,114630.0,0.13524]
[1754247029851,0.148273,114630.0,114620.0,0.13328]
[1754247030071,0.74626982,114630.0,114610.0,0.22226272]
[1754247030286,0.148273,114620.0,114610.0,0.22226272]
[1754247030489,0.59799682,114620.0,114610.0,0.22226272]
[1754247030695,0.59799682,114620.0,114610.0,0.22520272]
[1754247031348,0.74626982,114620.0,114610.0,0.08898272]
[1754247031560,0.74626982,114620.0,114610.0,0.22222272]
[1754247032408,0.74626982,114620.0,114610.0,0.22322272]
[1754247032620,0.74626982,114620.0,114610.0,0.22222272]
[1754247034717,0.75993104,114620.0,114610.0,0.22222272]
[1754247036733,0.75993104,114620.0,114610.0,0.22516272]
[1754247037845,0.74626982,114620.0,114610.0,0.22516272]
[1754247039672,0.74626982,114620.0,114610.0,0.22222272]
[1754247040094,0.8235212,114620.0,114610.0,0.01708272]
[1754247040326,1.36305011,114620.0,114610.0,0.01708272]
[1754247040550,1.31204473,114620.0,114610.0,0.01708272]
[1754247040789,1.32021257,114620.0,114610.0,0.01708272]
[1754247041010,1.30761804,114620.0,114610.0,0.01708272]
[1754247041451,1.2858059,114620.0,114610.0,0.01708272]
[1754247041870,1.2868059,114620.0,114610.0,0.01708272]
[1754247042298,1.27863806,114620.0,114610.0,0.01708272]
[1754247042510,1.36747562,114620.0,114610.0,0.01708272]
[1754247043919,1.37563586,114620.0,114610.0,0.01708272]
[1754247044778,1.37563462,114620.0,114610.0,0.01708272]
[1754247045229,1.37561302,114620.0,114610.0,0.01708272]
[1754247045446,1.367454,114620.0,114610.0,0.01708272]
[1754247046070,1.26495387,114620.0,114610.0,0.01708272]
[1754247046285,1.26495188,114620.0,114610.0,0.01708272]
[1754247046505,1.27310934,114620.0,114610.0,0.01708272]
[1754247047398,1.05902887,114620.0,114610.0,0.01708272]
[1754247048960,1.07269165,114620.0,114610.0,0.01708272]
[1754247049360,1.0788101,114620.0,114610.0,0.01708272]
[1754247049579,1.07880992,114620.0,114610.0,0.01708272]
[1754247051888,1.07880992,114620.0,114610.0,0.09076272]
[1754247054877,0.69489357,114620.0,114610.0,0.09076272]
[1754247055121,1.29289039,114620.0,114610.0,0.09076272]
[1754247056279,1.29289039,114620.0,114610.0,0.09380272]
[1754247056491,1.15977039,114620.0,114610.0,0.09380272]
[1754247056709,1.15978674,114620.0,114610.0,0.09380272]
[1754247056926,1.29286674,114620.0,114610.0,0.09380272]
[1754247057978,0.69486992,114620.0,114610.0,0.09594272]
[1754247058220,1.29286674,114620.0,114610.0,0.09594272]
[1754247058899,1.27920396,114620.0,114610.0,0.09594272]
[1754247061252,1.27720396,114620.0,114610.0,0.09594272]
[1754247061486,1.14412396,114620.0,114610.0,0.09594272]
[1754247061689,1.27820396,114620.0,114610.0,0.09594272]
[1754247063239,1.29186618,114620.0,114610.0,0.09594272]
[1754247063930,0.56078936,114620.0,114610.0,0.09594272]
[1754247064383,0.56079726,114620.0,114610.0,0.09594272]
[1754247064601,1.15879408,114620.0,114610.0,0.09594272]
[1754247066153,1.14513186,114620.0,114610.0,0.09594272]
[1754247069223,1.15879367,114620.0,114610.0,0.09594272]
[1754247072958,1.15884688,114620.0,114610.0,0.09594272]
[1754247073738,0.56085006,114620.0,114610.0,0.09594272]
[1754247073956,1.15884688,114620.0,114610.0,0.09594272]
[1754247074152,1.15884688,114620.0,114610.0,0.01708272]
[1754247075568,1.29196688,114620.0,114610.0,0.01708272]
[1754247075812,1.27830507,114620.0,114610.0,0.01708272]
[1754247078710,1.27831135,114620.0,114610.0,0.01708272]
[1754247078937,1.29197388,114620.0,114610.0,0.01708272]
[1754247079637,1.38081144,114620.0,114610.0,0.01708272]
[1754247080028,1.29197388,114620.0,114610.0,0.01708272]
[1754247084174,1.94003994,114620.0,114610.0,0.01708272]
[1754247085259,1.94006343,114620.0,114610.0,0.01708272]
[1754247085582,1.95751245,114620.0,114610.0,0.01708272]
[1754247086451,1.95625535,114620.0,114610.0,0.01708272]
[1754247086914,2.04509291,114620.0,114610.0,0.01708272]
[1754247087165,2.04409291,114620.0,114610.0,0.01708272]
[1754247087457,2.04609291,114620.0,114610.0,0.01708272]
[1754247087700,2.03443038,114620.0,114610.0,0.01708272]
[1754247090284,2.01061824,114620.0,114610.0,0.01708272]
[1754247090872,2.02428281,114620.0,114610.0,0.01708272]
[1754247091650,2.02427432,114620.0,114610.0,0.01708272]
[1754247092505,1.31239994,114620.0,114610.0,0.01708272]
[1754247092724,1.91039676,114620.0,114610.0,0.01708272]
[1754247093421,1.93538952,114620.0,114610.0,0.01708272]
[1754247096031,1.92172495,114620.0,114610.0,0.01708272]
[1754247096214,1.92172287,114620.0,114610.0,0.01708272]
[1754247096858,2.01056043,114620.0,114610.0,0.01708272]
[1754247098081,2.02422498,114620.0,114610.0,0.01708272]
[1754247098959,2.02420714,114620.0,114610.0,0.01708272]
[1754247099182,2.07427638,114620.0,114610.0,0.01708272]
[1754247105321,2.09313868,114620.0,114610.0,0.01708272]
[1754247107311,2.04306944,114620.0,114610.0,0.08496272]
[1754247107521,2.04306944,114620.0,114610.0,0.08812272]
[1754247107522,1.95423188,114620.0,114610.0,0.08812272]
[1754247107776,1.22315506,114620.0,114610.0,0.08812272]
[1754247108006,1.31378604,114620.0,114610.0,0.09023272]
[1754247108236,1.18070604,114620.0,114610.0,0.09023272]
[1754247108456,1.28125919,114620.0,114610.0,0.09023272]
[1754247109329,1.27825919,114620.0,114610.0,0.09023272]
[1754247109567,1.27625919,114620.0,114610.0,0.09023272]
[1754247110452,1.27826941,114620.0,114610.0,0.09023272]
[1754247111310,0.68027259,114620.0,114610.0,0.09023272]
[1754247111518,1.29393306,114620.0,114610.0,0.09023272]
[1754247114414,1.16085306,114620.0,114610.0,0.09023272]
[1754247114612,1.29393306,114620.0,114610.0,0.09023272]
[1754247116228,1.29393795,114620.0,114610.0,0.09023272]
[1754247120174,1.2802743,114620.0,114610.0,0.09023272]
[1754247121293,1.36912797,114620.0,114610.0,0.09023272]
[1754247121726,1.28029041,114620.0,114610.0,0.09023272]
[1754247122620,1.30410255,114620.0,114610.0,0.09023272]
[1754247122795,1.28029041,114620.0,114610.0,0.09023272]
[1754247123281,1.29395409,114620.0,114610.0,0.09023272]
[1754247124465,1.08143117,114620.0,114610.0,0.09023272]
[1754247124890,6.15524331,114620.0,114610.0,0.08496272]
[1754247126106,6.15524331,114620.0,114610.0,0.08812272]
[1754247126525,6.13887286,114620.0,114610.0,0.08812272]
[1754247126732,6.13273204,114620.0,114610.0,0.08812272]
[1754247126939,6.15523618,114620.0,114610.0,0.08812272]
[1754247131753,6.1415725,114620.0,114610.0,0.08812272]
[1754247132854,6.14157415,114620.0,114610.0,0.08812272]
[1754247135758,6.14158422,114620.0,114610.0,0.08812272]
[1754247136164,6.15524796,114620.0,114610.0,0.08812272]
[1754247136575,6.15524796,114620.0,114610.0,0.09024272]
[1754247139296,6.13143582,114620.0,114610.0,0.09024272]
[1754247144108,6.22027338,114620.0,114610.0,0.09024272]
[1754247144773,6.20661076,114620.0,114610.0,0.09024272]
[1754247145402,6.20662803,114620.0,114610.0,0.09024272]
[1754247146181,6.19296429,114620.0,114610.0,0.09024272]
[1754247148962,6.20662798,114620.0,114610.0,0.09024272]
[1754247150276,6.19296429,114620.0,114610.0,0.09024272]
[1754247151130,6.19296429,114620.0,114610.0,0.07924272]
[1754247153319,6.20662792,114620.0,114610.0,0.07924272]
[1754247153782,6.29546548,114620.0,114610.0,0.07924272]
[1754247154159,6.20662792,114620.0,114610.0,0.07924272]
[1754247157089,6.19296429,114620.0,114610.0,0.07924272]
[1754247157771,5.91721421,114620.0,114610.0,0.07924272]
[1754247159157,5.91721598,114620.0,114610.0,0.07924272]
[1754247159814,5.93087956,114620.0,114610.0,0.07924272]
[1754247160026,6.13779956,114620.0,114610.0,0.07924272]
[1754247160234,6.27083956,114620.0,114610.0,0.07924272]
[1754247161958,6.27085427,114620.0,114610.0,0.07924272]
[1754247164804,6.27085509,114620.0,114610.0,0.07924272]
[1754247165627,6.04582409,114620.0,114610.0,0.07924272]
[1754247166083,6.05840951,114620.0,114610.0,0.07924272]
[1754247167711,6.05841139,114620.0,114610.0,0.07924272]
[1754247168721,5.38523963,114620.0,114610.0,0.07924272]
[1754247168945,6.05841139,114620.0,114610.0,0.07924272]
[1754247170213,6.07207499,114620.0,114610.0,0.07924272]
[1754247172143,5.39890323,114620.0,114610.0,0.07924272]
[1754247172391,6.07207499,114620.0,114610.0,0.07924272]
[1754247172965,5.73207499,114620.0,114610.0,0.07924272]
[1754247175018,6.07207499,114620.0,114610.0,0.07924272]
[1754247176450,6.07203563,114620.0,114610.0,0.07924272]
[1754247177049,6.05837203,114620.0,114610.0,0.07924272]
[1754247177674,6.14720959,114620.0,114610.0,0.07924272]
[1754247178120,6.05837203,114620.0,114610.0,0.07924272]
[1754247179421,6.0583719,114620.0,114610.0,0.07924272]
[1754247180035,6.07203549,114620.0,114610.0,0.07924272]
[1754247181024,6.07203549,114620.0,114610.0,0.07712272]
[1754247181271,6.07203549,114620.0,114610.0,0.07396272]
[1754247181543,6.07203822,114620.0,114610.0,0.07396272]
[1754247181748,6.16087578,114620.0,114610.0,0.07396272]
[1754247183362,6.07203822,114620.0,114610.0,0.07396272]
[1754247186417,6.05837463,114620.0,114610.0,0.07694272]
[1754247187917,6.73154639,114620.0,114610.0,0.07694272]
[1754247189133,6.7452101,114620.0,114610.0,0.07694272]
[1754247193270,6.07203834,114620.0,114610.0,0.07694272]
[1754247194441,6.07203834,114620.0,114610.0,0.07906272]
[1754247195626,6.07203968,114620.0,114610.0,0.07906272]
[1754247195841,6.05837597,114620.0,114610.0,0.07906272]
[1754247197659,6.05833597,114620.0,114610.0,0.07906272]
[1754247199018,6.0719996,114620.0,114610.0,0.07906272]
[1754247201557,6.07199965,114620.0,114610.0,0.07906272]
[1754247204434,6.16083721,114620.0,114610.0,0.07906272]
[1754247205649,6.07199965,114620.0,114610.0,0.07906272]
[1754247205852,6.05833602,114620.0,114610.0,0.07906272]
[1754247207336,6.05833553,114620.0,114610.0,0.07906272]
[1754247210090,6.07199915,114620.0,114610.0,0.07906272]
[1754247213149,6.07199584,114620.0,114610.0,0.07906272]
[1754247215771,6.05833222,114620.0,114610.0,0.07906272]
[1754247216424,5.38516046,114620.0,114610.0,0.07906272]
[1754247216627,6.05833222,114620.0,114610.0,0.07906272]
[1754247218466,6.05833222,114620.0,114610.0,0.07694272]
[1754247218692,6.14716978,114620.0,114610.0,0.07396272]
[1754247218903,6.14717005,114620.0,114610.0,0.07396272]
[1754247219291,6.05833249,114620.0,114610.0,0.07396272]
[1754247220168,6.07199608,114620.0,114610.0,0.07396272]
[1754247221911,6.07199608,114620.0,114610.0,0.07702272]
[1754247224550,5.93903608,114620.0,114610.0,0.07702272]
[1754247225785,5.92537249,114620.0,114610.0,0.07702272]
[1754247227600,5.92537366,114620.0,114610.0,0.07702272]
[1754247230106,5.93903711,114620.0,114610.0,0.07702272]
[1754247233005,5.93903711,114620.0,114610.0,0.07913272]
[1754247233471,5.93903784,114620.0,114610.0,0.07913272]
[1754247234584,0.74382284,114620.0,114610.0,0.08704999]
[1754247234787,0.07065108,114620.0,114610.0,0.08704999]
[1754247234934,0.03073863,114620.0,114610.0,0.89310175]
[1754247235307,0.02459095,114620.0,114610.0,0.89310175]
[1754247236378,0.01639383,114620.0,114610.0,0.89310175]
[1754247236596,0.01639383,114620.0,114610.0,0.89510175]
[1754247237266,0.69941276,114640.0,114610.0,0.89510175]
[1754247237486,0.7239717,114640.0,114620.0,0.00218112]
[1754247237701,1.0639717,114640.0,114630.0,0.13499]
[1754247237912,1.07763226,114640.0,114630.0,0.13499]
[1754247238120,1.0639717,114640.0,114630.0,0.21238]
[1754247238555,1.07763195,114640.0,114630.0,0.21238]
[1754247239099,1.07762712,114640.0,114630.0,0.21238]
[1754247240182,0.40445536,114640.0,114630.0,0.21238]
[1754247240414,1.07762712,114640.0,114630.0,0.21238]
[1754247242444,1.06125932,114640.0,114630.0,0.21238]
[1754247242667,1.05307301,114640.0,114630.0,0.21238]
[1754247242869,1.05512301,114640.0,114630.0,0.0795]
[1754247243071,5.93486613,114640.0,114630.0,0.20717]
[1754247243327,5.91851396,114640.0,114630.0,0.20717]
[1754247243651,5.9185118,114640.0,114630.0,0.20717]
[1754247244319,5.91033801,114640.0,114630.0,0.20717]
[1754247244524,5.91033801,114640.0,114630.0,0.21234]
[1754247250365,5.91033801,114640.0,114630.0,0.07644]
[1754247250366,5.99917557,114640.0,114630.0,0.07644]
[1754247250585,5.91033801,114640.0,114630.0,0.20928]
[1754247257159,5.90455892,114640.0,114630.0,0.20928]
[1754247258454,5.90455892,114640.0,114630.0,0.20717]
[1754247259997,5.54409701,114640.0,114630.0,0.20717]
[1754247261244,5.55227149,114640.0,114630.0,0.20717]
[1754247262233,6.22544325,114640.0,114620.0,0.00306]
[1754247262439,1.34947352,114630.0,114620.0,0.1328]
[1754247262656,6.2306126,114630.0,114620.0,0.1328]
[1754247262861,6.2306126,114630.0,114620.0,0.20108]
[1754247263515,6.20366852,114630.0,114620.0,0.20108]
[1754247264346,6.21185325,114630.0,114620.0,0.20108]